bitfinex-derivatives/quotes_ETHF0:USTF0_20241102
["timestamp","ask_amount","ask_price","bid_price","bid_amount"]
[1730537472801,3.48785,2500.4,2500.3,0.4329]
[1730537473404,3.48785,2500.4,2500.3,0.58422866]
[1730537473609,0.28006,2500.3,2500.2,0.28006]
[1730537473798,2.17649139,2500.3,2500.2,0.70939531]
[1730537474098,2.17649139,2500.3,2500.2,0.86436148]
[1730537474295,2.17649139,2500.3,2500.2,0.98946379]
[1730537475101,1.89643139,2500.3,2500.2,0.98946379]
[1730537477098,3.2078,2500.4,2500.3,0.28006]
[1730537477404,3.2078,2500.4,2500.3,0.86467049]
[1730537477603,3.2078,2500.4,2500.3,0.98976761]
[1730537478401,3.2078,2500.4,2500.3,1.92515718]
[1730537479411,0.4409,2500.5,2500.3,1.64509718]
[1730537479597,0.4409,2500.5,2500.4,0.98975761]
[1730537479904,5.09033139,2500.5,2500.4,0.98975761]
[1730537480895,5.09033139,2500.5,2500.4,0.98976693]
[1730537481299,3.12225746,2500.7,2500.4,5.64427592]
[1730537481504,3.2078,2500.8,2500.5,2.0813332]
[1730537481713,1.44163139,2500.9,2500.6,2.81410653]
[1730537482008,1.44163139,2500.9,2500.8,0.28]
[1730537482197,1.44163139,2500.9,2500.8,0.98971693]
[1730537482595,1.44163139,2500.9,2500.8,0.70971693]
[1730537482808,1.44163139,2500.9,2500.7,0.28001]
[1730537483006,1.44163139,2500.8,2500.7,0.28001]
[1730537483209,1.44163139,2500.8,2500.7,0.86433436]
[1730537484311,1.44163139,2500.8,2500.7,0.28001]
[1730537484512,1.44163139,2500.8,2500.7,0.86426401]
[1730537484801,1.44163139,2500.8,2500.7,0.98933725]
[1730537485316,1.44163139,2500.8,2500.7,0.98933584]
[1730537485812,1.44163139,2500.8,2500.7,0.86426401]
[1730537487304,1.44163139,2500.8,2500.7,0.86388472]
[1730537488202,1.44163139,2500.8,2500.7,0.28001]
[1730537494714,1.44163139,2500.9,2500.8,0.28]
[1730537495018,1.44163139,2500.9,2500.8,0.86358649]
[1730537496710,1.44163139,2500.9,2500.8,0.28]
[1730537497917,1.44163139,2501.0,2500.9,0.27999]
[1730537498105,1.44163139,2501.0,2500.9,0.72779]
[1730537500008,1.44163139,2501.0,2500.9,4.72619]
[1730537500608,1.44163139,2501.0,2500.9,5.30937264]
[1730537500922,1.44163139,2501.0,2500.9,4.72619]
[1730537507819,1.44163139,2501.0,2500.9,0.72779]
[1730537508009,1.44163139,2501.0,2500.9,4.72619]
[1730537508212,1.44163139,2501.0,2500.9,0.72779]
[1730537508411,1.44163139,2501.0,2500.9,4.72619]
[1730537508723,1.44163139,2501.0,2500.9,0.72779]
[1730537509015,1.44163139,2501.0,2500.9,4.72619]
[1730537509215,1.44163139,2501.0,2500.9,0.72779]
[1730537521030,0.4597,2501.1,2501.0,0.27998]
[1730537521531,0.4597,2501.1,2501.0,0.72578]
[1730537521927,1.44163139,2501.2,2501.1,0.27997]
[1730537522134,1.72159139,2501.2,2501.1,0.27997]
[1730537524444,0.27997,2501.1,2501.0,0.72577]
[1730537524637,1.72160139,2501.1,2501.0,0.72577]
[1730537525033,1.44163139,2501.1,2501.0,0.72577]
[1730537525840,1.72160139,2501.1,2501.0,0.72577]
[1730537526244,1.72160139,2501.1,2501.0,1.30987886]
[1730537527133,1.44163139,2501.1,2501.0,1.30987886]
[1730537528943,8.05165885,2501.2,2501.1,0.27997]
[1730537529146,4.92940139,2501.2,2501.1,0.27997]
[1730537529537,4.92940139,2501.2,2501.1,0.86425669]
[1730537530044,4.92940139,2501.2,2501.1,0.27997]
[1730537530543,4.92940139,2501.2,2501.1,0.86430794]
[1730537531344,8.05165885,2501.2,2501.1,0.86430794]
[1730537531545,4.92940139,2501.2,2501.1,0.86430794]
[1730537531942,8.05165885,2501.2,2501.1,0.58433794]
[1730537532150,0.28,2500.9,2500.8,0.28]
[1730537532346,1.72163139,2500.9,2500.8,0.98948375]
[1730537533146,1.72163139,2500.9,2500.8,0.28]
[1730537533336,1.72163139,2500.9,2500.8,0.98949638]
[1730537533736,1.72163139,2500.9,2500.8,0.70949638]
[1730537533950,11.77008885,2500.9,2500.2,1.04774847]
[1730537534146,1.44163139,2500.7,2500.3,2.1041606]
[1730537534352,1.44163139,2500.7,2500.4,0.93518249]
[1730537534651,0.4234,2500.6,2500.5,0.28004]
[1730537535547,1.2996,2500.6,2500.2,1.2938]
[1730537535745,1.44163139,2500.4,2500.3,1.20797835]
[1730537536149,1.44163139,2500.4,2500.3,0.28006]
[1730537536446,1.44163139,2500.4,2500.3,1.2079836]
[1730537536747,1.44163139,2500.4,2500.3,0.28006]
[1730537539452,5.94903139,2500.6,2500.5,0.28004]
[1730537539950,6.22906139,2500.6,2500.5,0.28004]
[1730537540146,4.5074,2500.6,2500.5,0.28004]
[1730537540745,0.8496,2500.6,2500.5,0.28004]
[1730537540951,0.4282,2500.8,2500.7,0.28001]
[1730537543048,0.7082,2500.8,2500.7,0.28001]
[1730537543244,0.4282,2500.8,2500.7,0.28001]
[1730537543551,0.4282,2500.8,2500.5,1.3135]
[1730537543752,0.4282,2500.8,2500.6,0.28003]
[1730537543753,1.44163139,2500.7,2500.6,0.28003]
[1730537544152,1.72164139,2500.7,2500.6,0.28003]
[1730537544657,1.72164139,2500.7,2500.5,0.4351]
[1730537544857,1.89873139,2500.6,2500.5,0.28003]
[1730537545046,2.35173139,2500.6,2500.5,0.28003]
[1730537545752,2.63176139,2500.6,2500.5,0.28003]
[1730537546256,2.35173139,2500.6,2500.5,0.28003]
[1730537547658,0.9101,2500.6,2500.5,0.28003]
[1730537551446,0.4571,2500.6,2500.5,0.28003]
[1730537555844,0.4571,2500.6,2500.3,0.4356]
[1730537555845,1.44163139,2500.7,2500.6,0.28003]
[1730537556046,1.72164139,2500.7,2500.6,0.28003]
[1730537557264,1.44163139,2500.7,2500.6,0.28003]
[1730537557755,3.6605,2500.8,2500.7,0.28001]
[1730537557959,0.4527,2500.8,2500.7,0.28001]
[1730537564260,0.73271,2500.8,2500.6,0.28002]
[1730537564477,1.72164139,2500.7,2500.6,0.28002]
[1730537564962,1.44163139,2500.7,2500.6,0.28002]
[1730537566662,1.72164139,2500.7,2500.6,0.28002]
[1730537567465,0.28003,2500.6,2500.5,0.28003]
[1730537567661,1.72166139,2500.6,2500.5,0.28003]
[1730537568358,1.72166139,2500.6,2500.3,0.4356]
[1730537568563,0.4281,2500.5,2500.4,0.28005]
[1730537568960,0.4281,2500.5,2500.4,0.85959814]
[1730537569461,0.4281,2500.5,2500.4,0.28005]
[1730537569764,1.3094,2500.5,2500.4,0.28005]
[1730537572068,1.58944,2500.5,2500.4,0.28005]
[1730537572263,0.28005,2500.4,2500.3,0.71565]
[1730537572464,1.44163139,2500.4,2500.3,0.71565]
[1730537572665,1.44163139,2500.4,2500.3,1.29533591]
[1730537572874,1.44163139,2500.4,2500.3,0.28005]
[1730537573765,4.92948139,2500.4,2500.2,0.28006]
[1730537574267,4.64943139,2500.4,2500.2,0.28006]
[1730537574466,0.28006,2500.3,2500.2,0.28006]
[1730537574774,0.28006,2500.3,2500.1,0.28008]
[1730537574970,0.4218,2500.2,2500.1,0.28008]
[1730537575173,2.14350139,2500.2,2500.1,0.57972115]
[1730537575375,2.14350139,2500.2,2500.1,0.28008]
[1730537575566,2.14350139,2500.2,2500.0,0.71359]
[1730537576476,5.35130139,2500.2,2500.1,0.28008]
[1730537577567,5.07123139,2500.2,2500.1,0.28008]
[1730537577769,1.86343139,2500.2,2500.1,0.85979145]
[1730537578570,1.86343139,2500.2,2500.1,0.28008]
[1730537580473,1.44163139,2500.4,2500.3,0.28006]
[1730537581079,1.44163139,2500.4,2500.3,0.72096]
[1730537581080,1.72168139,2500.4,2500.3,0.72096]
[1730537581269,1.44163139,2500.4,2500.3,0.72096]
[1730537581876,1.72168139,2500.4,2500.3,0.72096]
[1730537582478,1.44163139,2500.4,2500.3,0.72096]
[1730537583983,1.72168139,2500.4,2500.3,0.72096]
[1730537584689,1.72168139,2500.4,2500.2,0.8783]
[1730537584690,1.44163139,2500.4,2500.2,0.8783]
[1730537584979,2.15590139,2500.3,2500.2,0.28007]
[1730537585375,1.87583139,2500.3,2500.2,0.28007]
[1730537585575,2.15589139,2500.3,2500.2,0.28007]
[1730537586479,1.87583139,2500.3,2500.2,0.28007]
[1730537586670,1.87583139,2500.3,2500.0,0.441]
[1730537586877,1.44163139,2500.1,2500.0,0.72109]
[1730537587576,1.44163139,2500.1,2500.0,1.30055016]
[1730537587979,1.44163139,2500.1,2500.0,0.72109]
[1730537589984,1.44163139,2500.1,2500.0,1.30049185]
[1730537590482,1.44163139,2500.1,2500.0,0.72109]
[1730537593391,1.44163139,2500.1,2500.0,1.30039975]
[1730537593695,1.44163139,2500.2,2500.0,1.02030234]
[1730537593989,1.44163139,2500.2,2500.1,0.28008]
[1730537607390,1.44163139,2500.2,2500.1,0.85970851]
[1730537608300,1.44163139,2500.2,2500.1,0.28008]
[1730537608497,1.44163139,2500.2,2500.1,0.85978632]
[1730537609398,1.44163139,2500.2,2500.1,0.98489083]
[1730537610100,1.44163139,2500.2,2500.1,0.85978632]
[1730537610302,1.44163139,2500.2,2500.1,0.98489148]
[1730537610602,1.89773139,2500.2,2500.1,0.98489148]
[1730537612596,1.89773139,2500.2,2500.1,1.44689148]
[1730537612799,1.89773139,2500.2,2500.1,1.44732633]
[1730537613298,1.89773139,2500.2,2500.1,2.37573926]
[1730537614592,1.89773139,2500.2,2500.1,1.9138708]
[1730537614789,1.89773139,2500.2,2500.1,0.98532633]
[1730537615698,1.89773139,2500.2,2500.1,1.91399424]
[1730537616102,5.10553139,2500.2,2500.1,0.98532633]
[1730537616296,5.10553139,2500.2,2500.1,1.91401007]
[1730537619096,5.10553139,2500.2,2500.1,0.40518516]
[1730537619293,5.10553139,2500.2,2500.1,1.9147255]
[1730537621799,1.89773139,2500.2,2500.1,1.9147255]
[1730537622394,1.89773139,2500.2,2500.1,1.78978054]
[1730537622599,1.89773139,2500.2,2500.1,1.91488733]
[1730537624699,5.02636138,2500.2,2500.1,1.91488733]
[1730537625194,5.30643138,2500.2,2500.1,0.98584084]
[1730537626005,5.02636138,2500.2,2500.1,0.98584753]
[1730537627108,5.30643138,2500.2,2500.1,0.70576753]
[1730537627407,0.28009,2500.1,2499.9,0.2801]
[1730537627597,4.57429902,2500.0,2499.9,0.2801]
[1730537627799,7.78209902,2500.0,2499.9,0.98579483]
[1730537628001,4.92952139,2500.0,2499.9,0.98579483]
[1730537628205,8.06212182,2500.0,2499.9,0.98579483]
[1730537628411,8.06212182,2500.0,2499.9,0.86067543]
[1730537629212,4.85432182,2500.0,2499.9,0.2801]
[1730537629402,4.85432182,2500.0,2499.9,0.8605526]
[1730537629707,8.06212182,2500.0,2499.9,0.8605526]
[1730537630407,8.06212182,2500.0,2499.9,0.2801]
[1730537630603,4.85432182,2500.0,2499.9,0.2801]
[1730537631212,8.06212182,2500.0,2499.9,0.2801]
[1730537631510,7.78203182,2500.0,2499.9,0.2801]
[1730537632012,8.06212182,2500.0,2499.9,0.2801]
[1730537633409,4.64943139,2500.0,2499.9,0.2801]
[1730537634705,1.44163139,2500.0,2499.9,0.2801]
[1730537641017,6.88326278,2500.0,2499.2,0.62443648]
[1730537641212,6.88326278,2500.0,2499.4,0.28015]
[1730537641213,0.28015,2499.5,2499.4,0.28015]
[1730537641417,0.28015,2499.5,2499.4,0.98520913]
[1730537641609,0.28015,2499.5,2499.4,0.86007418]
[1730537641808,0.28015,2499.5,2499.4,0.28015]
[1730537642015,3.48795,2499.6,2499.4,0.28015]
[1730537642220,1.44163139,2499.5,2499.4,0.28015]
[1730537642726,1.72178139,2499.5,2499.4,0.28015]
[1730537643718,1.44163139,2499.5,2499.4,0.28015]
[1730537644318,1.72178139,2499.5,2499.4,0.28015]
[1730537646423,0.28016,2499.4,2499.3,0.72746]
[1730537646720,0.442,2499.4,2499.3,0.72746]
[1730537647118,0.72216,2499.4,2499.3,0.72746]
[1730537647320,0.72216,2499.4,2499.3,0.4473]
[1730537648516,0.72216,2499.4,2499.2,1.15868]
[1730537648725,1.72180139,2499.3,2499.2,1.15868]
[1730537650815,1.72180139,2499.3,2499.2,0.8785]
[1730537651227,1.72180139,2499.3,2499.2,1.2992]
[1730537651523,1.44163139,2499.3,2499.2,1.57938]
[1730537653822,1.72180139,2499.3,2499.2,0.4207]
[1730537654019,1.72180139,2499.3,2499.2,0.70088]
[1730537654226,1.72180139,2499.3,2499.2,0.4207]
[1730537656328,1.72180139,2499.3,2499.2,0.70088]
[1730537656532,1.72180139,2499.3,2499.2,0.4207]
[1730537657227,1.72180139,2499.3,2499.2,0.70088]
[1730537658227,1.44163139,2499.3,2499.2,0.70088]
[1730537659331,1.72180139,2499.3,2499.2,0.4207]
[1730537659632,2.14150139,2499.3,2499.2,0.70088]
[1730537660526,2.14150139,2499.3,2499.2,0.4207]
[1730537661231,2.14150139,2499.3,2499.2,0.70088]
[1730537661531,2.14150139,2499.3,2499.2,0.4207]
[1730537661832,2.57000139,2499.3,2499.2,0.4207]
[1730537662626,2.57000139,2499.3,2499.2,0.70088]
[1730537663429,2.28983139,2499.3,2499.2,0.70088]
[1730537663827,2.57000139,2499.3,2499.2,0.70088]
[1730537664922,2.14150139,2499.3,2499.2,0.70088]
[1730537665428,1.86133139,2499.3,2499.2,0.70088]
[1730537667334,2.14150139,2499.3,2499.2,0.70088]
[1730537667732,1.86133139,2499.3,2499.2,0.70088]
[1730537668228,1.44163139,2499.3,2499.2,0.70088]
[1730537668449,1.44163139,2499.4,2499.3,0.28017]
[1730537668737,1.44163139,2499.5,2499.3,0.9107]
[1730537668943,1.44163139,2499.5,2499.4,0.28016]
[1730537669139,1.44163139,2499.5,2499.4,4.28096]
[1730537669641,1.44163139,2499.5,2499.3,0.9107]
[1730537669642,4.64943139,2499.5,2499.3,0.9107]
[1730537669844,4.64943139,2499.5,2499.3,1.19087]
[1730537670033,0.28016,2499.4,2499.3,1.19087]
[1730537670233,0.71516,2499.4,2499.3,1.19087]
[1730537670738,0.435,2499.4,2499.3,1.19087]
[1730537672436,4.92959139,2499.5,2499.3,1.19087]
[1730537672936,1.72179139,2499.5,2499.3,1.19087]
[1730537673140,1.85046554,2499.5,2499.3,1.19087]
[1730537675543,1.57030554,2499.5,2499.3,0.9107]
[1730537675747,1.85046554,2499.5,2499.3,1.19086]
[1730537676543,1.85046554,2499.5,2499.3,0.9107]
[1730537676747,1.85046554,2499.5,2499.4,0.28016]
[1730537677346,1.72179139,2499.5,2499.4,0.28016]
[1730537680645,0.28016,2499.4,2499.3,1.19086]
[1730537682448,1.44163139,2499.5,2499.4,0.28016]
[1730537682449,1.72179139,2499.5,2499.4,0.28016]
[1730537682663,4.92959139,2499.5,2499.4,0.28016]
[1730537683647,0.28016,2499.4,2499.3,0.9107]
[1730537683849,0.28016,2499.4,2499.3,1.19087]
[1730537684152,3.4098637,2499.4,2499.3,1.19087]
[1730537685045,0.28016,2499.4,2499.3,1.19087]
[1730537685250,3.4098637,2499.4,2499.3,1.19087]
[1730537685438,3.4098637,2499.4,2499.3,1.89657748]
[1730537687056,0.28016,2499.4,2499.3,0.70570748]
[1730537687254,3.4098637,2499.4,2499.3,0.98587748]
[1730537687647,3.4098637,2499.4,2499.3,0.86073555]
[1730537687848,3.4098637,2499.4,2499.3,0.98588798]
[1730537688045,3.4098637,2499.4,2499.3,0.28017]
[1730537688248,6.74842444,2499.4,2499.3,0.86075574]
[1730537688462,6.74842444,2499.4,2499.3,0.98590722]
[1730537688653,3.54062444,2499.4,2499.3,0.98590722]
[1730537689350,6.74842444,2499.4,2499.3,0.98590722]
[1730537691254,3.54062444,2499.4,2499.3,0.98590722]
[1730537691555,6.74842444,2499.4,2499.3,0.86075574]
[1730537691758,6.74842444,2499.4,2499.3,0.98599367]
[1730537692751,6.74842444,2499.4,2499.3,0.86084247]
[1730537692957,6.74842444,2499.4,2499.3,0.98599252]
[1730537693155,3.54062444,2499.4,2499.3,0.98599252]
[1730537694158,3.54062444,2499.4,2499.3,1.41569252]
[1730537694349,3.54062444,2499.4,2499.3,1.86739252]
[1730537694546,3.54062444,2499.4,2499.3,0.70582252]
[1730537695460,3.54062444,2499.4,2499.3,0.70589922]
[1730537696559,0.41092074,2499.4,2499.3,0.70589922]
[1730537696858,0.41092074,2499.4,2499.3,0.58074917]
[1730537698055,0.13076074,2499.4,2499.1,0.28019]
[1730537698258,1.72181139,2499.2,2499.1,0.28019]
[1730537698470,1.72181139,2499.2,2499.1,0.98606685]
[1730537699065,1.72181139,2499.2,2499.1,1.91521518]
[1730537699266,1.72181139,2499.2,2499.1,0.98606685]
[1730537699763,1.72181139,2499.2,2499.1,0.98603462]
[1730537700867,1.44163139,2499.2,2499.1,0.98603462]
[1730537701068,1.44163139,2499.2,2499.1,1.91512701]
[1730537701562,1.72181139,2499.2,2499.1,1.91512701]
[1730537702072,1.72181139,2499.2,2499.1,1.91509852]
[1730537703268,2.16591139,2499.2,2499.1,1.91509852]
[1730537703561,3.60754278,2499.2,2499.1,1.63490852]
[1730537703863,3.60754278,2499.2,2499.1,0.70582935]
[1730537704166,6.74091939,2499.2,2499.1,0.70582935]
[1730537704571,6.86761741,2499.2,2499.1,0.70582935]
[1730537705267,6.86761741,2499.2,2499.1,0.58067448]
[1730537706969,0.28019,2499.1,2499.0,0.4585]
[1730537707165,7.04006324,2499.1,2499.0,0.4585]
[1730537708465,7.04006324,2499.1,2498.9,0.4397]
[1730537708466,0.28021,2499.0,2498.9,0.4397]
[1730537708767,0.28021,2499.0,2498.9,0.71992]
[1730537708768,1.72184139,2499.0,2498.9,0.71992]
[1730537709471,4.92964139,2499.0,2498.9,0.71992]
[1730537709861,4.64943139,2499.0,2498.6,0.8885]
[1730537710064,1.44163139,2498.7,2498.6,1.16875]
[1730537710269,1.44163139,2498.7,2498.6,2.21534175]
[1730537711274,1.44163139,2498.9,2498.8,0.28023]
[1730537711571,1.44163139,2498.9,2498.8,1.32682175]
[1730537711772,1.44163139,2498.9,2498.8,5.32842175]
[1730537713370,1.44163139,2498.9,2498.8,4.28183]
[1730537713585,1.44163139,2498.9,2498.8,5.32812403]
[1730537713799,1.44163139,2498.9,2498.8,4.28183]
[1730537713985,1.44163139,2498.9,2498.8,5.32814482]
[1730537717202,1.44163139,2498.9,2498.8,1.32654286]
[1730537717391,1.44163139,2498.9,2498.8,1.32654981]
[1730537718991,1.44163139,2498.9,2498.8,1.90227499]
[1730537719192,1.44163139,2498.9,2498.8,0.40539076]
[1730537719493,1.44163139,2498.9,2498.8,1.90228195]
[1730537720287,6.46427628,2499.5,2499.0,0.28021]
[1730537720492,1.44163139,2499.2,2499.1,1.86247814]
[1730537720693,1.44163139,2499.2,2499.1,2.78358553]
[1730537720894,1.44163139,2499.2,2499.1,2.78357806]
[1730537721399,1.44163139,2499.2,2499.1,2.65841691]
[1730537721699,1.44163139,2499.2,2499.1,2.78353721]
[1730537724894,1.44163139,2499.2,2499.1,1.16159]
[1730537725103,1.44163139,2499.2,2499.1,2.78352235]
[1730537725300,1.44163139,2499.2,2499.1,2.78352119]
[1730537725500,1.44163139,2499.2,2499.1,6.78512119]
[1730537725897,1.44163139,2499.2,2499.1,7.93644507]
[1730537726501,1.44163139,2499.2,2499.1,5.28832302]
[1730537726706,1.44163139,2499.2,2499.1,7.93608789]
[1730537727699,1.44163139,2499.2,2499.1,6.78488577]
[1730537728101,1.44163139,2499.2,2499.1,7.93602187]
[1730537728309,1.44163139,2499.2,2499.1,6.78488577]
[1730537728714,1.44163139,2499.2,2499.1,5.16319]
[1730537729012,1.44163139,2499.2,2499.1,6.78471485]
[1730537729204,1.44163139,2499.2,2499.1,2.78311485]
[1730537729410,1.44163139,2499.2,2499.1,6.78471485]
[1730537731002,1.44163139,2499.7,2499.6,0.28014]
[1730537731209,1.44163139,2499.7,2499.6,0.9808122]
[1730537731398,1.44163139,2499.7,2499.6,4.9816122]
[1730537731607,1.44163139,2499.7,2499.6,5.4032122]
[1730537731800,1.44163139,2499.7,2499.6,6.32356619]
[1730537732306,1.44163139,2499.7,2499.6,4.70254]
[1730537732496,1.44163139,2499.7,2499.6,5.40268476]
[1730537735205,1.44163139,2499.7,2499.6,8.61048476]
[1730537735510,1.44163139,2499.7,2499.6,8.61048656]
[1730537735907,1.44163139,2499.7,2499.6,7.91034]
[1730537736110,1.44163139,2499.9,2499.6,8.6100569]
[1730537736302,1.44163139,2499.9,2499.8,0.28012]
[1730537736815,1.44163139,2499.9,2499.8,0.73462]
[1730537740314,1.44163139,2500.4,2499.9,0.70027]
[1730537740512,2.75623139,2500.4,2500.3,0.28005]
[1730537745616,0.28006,2500.3,2500.1,0.28008]
[1730537746023,2.75623139,2500.4,2500.1,0.28008]
[1730537746217,1.44163139,2500.2,2500.1,0.28008]
[1730537747019,1.3146,2500.4,2500.3,0.28006]
[1730537753225,0.8736,2500.4,2500.3,0.28006]
[1730537755714,0.4434,2500.4,2500.3,0.28006]
[1730537756520,0.4434,2500.4,2500.3,0.72646]
[1730537761727,1.88503139,2500.4,2500.3,0.28006]
[1730537767932,0.4434,2500.4,2500.3,0.28006]
[1730537768531,0.4434,2500.4,2500.3,0.72126]
[1730537768833,0.4434,2500.4,2500.3,1.14586]
[1730537771441,0.4434,2500.4,2500.3,4.35366]
[1730537773445,0.4604,2500.6,2500.3,4.0736]
[1730537773632,0.9182,2500.6,2500.5,0.28004]
[1730537777744,1.44163139,2500.7,2500.6,0.28003]
[1730537779439,0.887,2500.9,2500.8,0.28]
[1730537779740,0.4414,2501.2,2501.1,0.27997]
[1730537780043,0.4575,2501.2,2501.1,0.27997]
[1730537782040,2.62798139,2501.3,2500.8,1.13242]
[1730537782041,1.89853139,2501.3,2501.2,0.27996]
[1730537782238,2.35603139,2501.3,2501.2,0.27996]
[1730537783445,2.35603139,2501.3,2501.1,0.421]
[1730537783645,1.44163139,2501.2,2501.1,0.27997]
[1730537783846,1.44163139,2501.2,2501.0,0.4285]
[1730537784054,1.72159139,2501.2,2501.0,0.27998]
[1730537784441,1.72159139,2501.2,2500.9,0.27999]
[1730537784442,0.27997,2501.1,2500.9,0.27999]
[1730537784637,1.88123139,2501.0,2500.9,0.27999]
[1730537784844,2.30023139,2501.0,2500.9,0.27999]
[1730537785452,2.30023139,2501.0,2500.9,0.72459]
[1730537786645,2.30023139,2501.0,2500.9,0.27999]
[1730537792856,2.30023139,2501.0,2500.7,3.6514]
[1730537793049,2.30023139,2501.0,2500.8,0.28]
[1730537793050,0.4448,2500.9,2500.8,0.28]
[1730537793245,2.16643139,2500.9,2500.7,3.48781]
[1730537793447,2.16643139,2500.9,2500.7,0.28001]
[1730537793648,5.01574243,2500.9,2500.5,1.2859]
[1730537793848,1.44163139,2500.6,2500.5,1.56594]
[1730537795150,1.44163139,2500.6,2500.5,0.72654]
[1730537795455,1.88463139,2500.6,2500.5,0.28004]
[1730537795847,1.88463139,2500.6,2500.4,0.4285]
[1730537796045,1.88463139,2500.6,2500.5,0.28004]
[1730537806356,5.88383139,2500.6,2500.5,0.28004]
[1730537806861,6.16386139,2500.6,2500.4,0.28004]
[1730537807164,1.88463139,2500.6,2500.3,0.4447]
[1730537807363,1.88463139,2500.6,2500.5,0.28004]
[1730537807762,5.88383139,2500.6,2500.5,0.28004]
[1730537809167,1.88463139,2500.6,2500.5,0.28004]
[1730537813668,1.44163139,2500.6,2500.5,0.28004]
[1730537823775,1.72166139,2500.6,2500.5,0.28004]
[1730537825584,0.4329,2500.7,2500.3,0.4447]
[1730537825779,0.71292,2500.7,2500.6,0.28003]
[1730537827779,3.12931104,2500.8,2500.7,0.28001]
[1730537827985,0.28,2500.9,2500.8,0.28]
[1730537827986,3.40931104,2500.9,2500.8,0.28]
[1730537828382,3.40931104,2500.9,2500.8,0.728]
[1730537828581,0.28,2500.9,2500.8,0.728]
[1730537828884,3.40931104,2500.9,2500.8,0.728]
[1730537830486,3.40930104,2500.9,2500.8,0.728]
[1730537830884,0.27999,2500.9,2500.8,0.728]
[1730537832677,1.72162139,2500.9,2500.8,0.728]
[1730537834985,1.72162139,2500.9,2500.8,0.448]
[1730537835784,1.72162139,2500.9,2500.8,1.30351895]
[1730537835985,1.72162139,2500.9,2500.8,0.728]
[1730537836179,1.72162139,2500.9,2500.8,1.30351552]
[1730537836479,1.72162139,2500.9,2500.8,0.728]
[1730537836672,1.72162139,2500.9,2500.8,1.42866395]
[1730537836876,1.72162139,2500.9,2500.8,0.728]
[1730537837291,4.85093243,2500.9,2500.8,0.728]
[1730537837588,1.72162139,2500.9,2500.8,0.728]
[1730537838279,4.85093243,2500.9,2500.8,1.30372558]
[1730537838676,4.85093243,2500.9,2500.8,1.02372558]
[1730537838882,8.05873243,2500.9,2500.8,1.02372558]
[1730537839187,8.05873243,2500.9,2500.8,1.30372777]
[1730537839385,8.05873243,2500.9,2500.8,1.30377529]
[1730537839586,8.05873243,2500.9,2500.8,1.30377501]
[1730537839787,4.85093243,2500.9,2500.8,1.30377501]
[1730537840183,8.05873243,2500.9,2500.8,1.30377501]
[1730537840384,4.85093243,2500.9,2500.8,1.4288488]
[1730537840590,4.85093243,2500.9,2500.8,1.30377501]
[1730537842290,4.85093243,2500.9,2500.8,1.42884818]
[1730537842593,1.72162139,2500.9,2500.8,1.30377501]
[1730537842787,4.85093243,2500.9,2500.8,1.30377501]
[1730537843288,4.85093243,2500.9,2500.8,1.30373088]
[1730537843489,4.85093243,2500.9,2500.8,0.728]
[1730537843692,5.28303243,2500.9,2500.8,0.728]
[1730537843890,5.00304243,2500.9,2500.4,2.14174139]
[1730537844085,2.56834139,2500.8,2500.7,0.28001]
[1730537844391,5.69765243,2500.8,2500.7,0.28001]
[1730537845991,2.56834139,2500.8,2500.7,0.28001]
[1730537847395,2.28833139,2500.8,2500.4,0.4615]
[1730537847592,3.13853827,2500.7,2500.5,0.98084729]
[1730537847896,0.28003,2500.6,2500.5,0.28003]
[1730537848597,3.41855827,2500.7,2500.5,0.28003]
[1730537848894,0.28004,2500.5,2500.3,0.72595]
[1730537849097,0.4203,2500.4,2500.3,0.72595]
[1730537849293,0.4203,2500.4,2500.3,1.42679499]
[1730537850293,0.4203,2500.4,2500.3,0.72595]
[1730537850490,0.4203,2500.4,2500.3,2.22288829]
[1730537850705,0.4203,2500.4,2500.3,2.34797452]
[1730537853902,0.4203,2500.4,2500.3,0.72595]
[1730537854102,0.4203,2500.4,2500.3,2.34792164]
[1730537856200,0.70035,2500.4,2500.3,2.06787164]
[1730537856397,0.70035,2500.4,2500.3,0.70081158]
[1730537856604,1.14565,2500.4,2500.3,0.57572504]
[1730537856915,4.28418827,2500.4,2500.2,0.28006]
[1730537857507,1.44163139,2500.3,2500.2,0.28006]
[1730537857710,1.44163139,2500.3,2500.2,0.9807867]
[1730537858701,1.44163139,2500.3,2500.2,0.28006]
[1730537858903,1.44163139,2500.3,2500.2,0.85563229]
[1730537859211,1.44163139,2500.3,2500.2,0.28006]
[1730537859404,1.44163139,2500.3,2500.2,0.85554054]
[1730537859609,1.44163139,2500.3,2500.2,0.28006]
[1730537861010,1.44163139,2500.3,2500.1,0.4216]
[1730537861211,1.44163139,2500.2,2500.0,1.11839]
[1730537861511,1.72171139,2500.2,2500.1,0.28008]
[1730537862908,1.72170139,2500.3,2500.1,0.28008]
[1730537863416,1.44163139,2500.3,2500.1,0.28008]
[1730537863613,0.28007,2500.2,2500.1,0.28008]
[1730537868217,0.28007,2500.2,2500.1,0.74218]
[1730537876026,4.92946139,2500.6,2500.5,0.28004]
[1730537876818,1.72166139,2500.6,2500.5,0.28004]
[1730537878923,0.28005,2500.4,2500.3,0.28006]
[1730537879122,1.44163139,2500.4,2500.1,0.4621]
[1730537879529,1.72169139,2500.4,2500.2,0.28007]
[1730537879724,1.44163139,2500.4,2500.2,0.28007]
[1730537880024,0.28006,2500.3,2500.2,0.28007]
[1730537881120,1.72169139,2500.4,2500.2,0.28007]
[1730537882124,0.28006,2500.3,2500.2,0.28007]
[1730537884630,1.44163139,2500.4,2500.1,0.4621]
[1730537884822,1.72170139,2500.2,2500.1,0.4621]
[1730537886827,2.15140139,2500.2,2500.1,0.4621]
[1730537889730,1.87133139,2500.2,2500.1,0.74218]
[1730537890028,1.87133139,2500.2,2500.1,1.73544438]
[1730537890223,1.87133139,2500.2,2500.1,1.73551989]
[1730537890836,2.15140139,2500.2,2500.1,1.73551989]
[1730537891034,2.15140139,2500.2,2500.1,1.16028]
[1730537891235,2.15140139,2500.2,2500.1,1.73558359]
[1730537891934,2.15140139,2500.2,2500.1,1.86068673]
[1730537892131,1.87133139,2500.2,2500.1,1.86068653]
[1730537892525,2.15140139,2500.2,2500.0,0.70029]
[1730537892728,2.57840139,2500.2,2500.0,0.70029]
[1730537893031,2.29833139,2500.2,2500.0,0.70029]
[1730537893230,2.29833139,2500.2,2500.1,0.4253]
[1730537895136,2.29833139,2500.2,2500.1,1.12590438]